fUST/lending_fUST_20240902
["ID","MTS","AMOUNT","RATE_DAILY","PERIOD"]
[336945861,1725258652297,-500.0,0.00025753,2]
[336945862,1725258652306,-508.1,0.00025753,2]
[336945863,1725258652315,-500.0,0.00025753,2]
[336945864,1725258652325,-678.91,0.00025753,2]
[336945865,1725258652334,-588.43,0.00025753,2]
[336945866,1725258652343,-277.95114225,0.00025753,2]
[336945867,1725258652353,-151.0,0.00025753,7]
[336945868,1725258652362,-701.58,0.00025753,2]
[336945869,1725258652371,-704.38,0.00025753,2]
[336945870,1725258652380,-604.82,0.00025753,2]
[336945871,1725258652390,-251.64996,0.00025753,7]
[336945872,1725258652399,-543.95,0.00025753,2]
[336945873,1725258652408,-430.56748116,0.00025753,2]
[336945874,1725258652417,-500.0,0.00025753,2]
[336945875,1725258652426,-500.0,0.00025753,2]
[336945876,1725258652435,-500.0,0.00025753,2]
[336945877,1725258652444,-1217.58,0.00025753,2]
[336945878,1725258652455,-500.0,0.00025753,2]
[336945879,1725258652464,-522.46,0.00025753,2]
[336945880,1725258652474,-826.86,0.00025753,2]
[336945881,1725258652483,-728.19,0.00025753,2]
[336945882,1725258652492,-151.0,0.00025753,7]
[336945883,1725258652501,-500.0,0.00025753,2]
[336945884,1725258652510,-151.0,0.00025753,7]
[336945885,1725258652519,-999.17,0.00025753,2]
[336945886,1725258652529,-1665.34,0.00025753,2]
[336945887,1725258652538,-500.0,0.00025753,2]
[336945888,1725258652547,-500.0,0.00025753,2]
[336945889,1725258652556,-500.0,0.00025753,2]
[336945890,1725258652566,-342.03967884,0.00025753,2]
[336945891,1725258652575,-500.0,0.00025753,2]
[336945892,1725258652585,-962.83,0.00025753,2]
[336945893,1725258652594,-954.9,0.00025753,2]
[336945894,1725258652603,-500.0,0.00025753,2]
[336945895,1725258652614,-632.46,0.00025753,2]
[336945896,1725258652623,-500.0,0.00025753,2]
[336945897,1725258652632,-672.66,0.00025753,2]
[336945898,1725258652642,-500.0,0.00025753,2]
[336945899,1725258652652,-929.62,0.00025753,2]
[336945900,1725258652661,-2020.1,0.00025753,2]
[336945901,1725258652670,-500.0,0.00025753,2]
[336945902,1725258652679,-500.0,0.00025753,2]
[336945903,1725258652689,-500.0,0.00025753,2]
[336945904,1725258652699,-500.0,0.00025753,2]
[336945905,1725258652708,-500.0,0.00025753,2]
[336945906,1725258652718,-573.14,0.00025753,2]
[336945907,1725258652728,-665.01,0.00025753,2]
[336945908,1725258652737,-500.0,0.00025753,2]
[336945909,1725258652746,-1487.23,0.00025753,2]
[336945910,1725258652755,-500.0,0.00025753,2]
[336945911,1725258652765,-182.56896987,0.00025753,2]
[336945912,1725258652774,-630.5,0.00025753,2]
[336945913,1725258652784,-1094.2,0.00025753,2]
[336945914,1725258652794,-8619.74,0.00025753,2]
[336945915,1725258652803,-984.18,0.00025753,2]
[336945916,1725258652812,-500.0,0.00025753,2]
[336945917,1725258652822,-1200.96,0.00025753,2]
[336945918,1725258652831,-1157.38,0.00025753,2]
[336945919,1725258652840,-1212.92,0.00025753,2]
[336945920,1725258652850,-500.0,0.00025753,2]
[336945921,1725258652859,-879.85,0.00025753,2]
[336945922,1725258652868,-1820.98,0.00025753,2]
[336945923,1725258652877,-601.14,0.00025753,2]
[336945924,1725258652887,-500.0,0.00025753,2]
[336945925,1725258652896,-500.0,0.00025753,2]
[336945926,1725258652905,-2061.91,0.00025753,2]
[336945927,1725258652915,-945.73,0.00025753,2]
[336945928,1725258652930,-1363.01,0.00025753,2]
[336945929,1725258652939,-500.0,0.00025753,2]
[336945930,1725258652949,-1010.37,0.00025753,2]
[336945931,1725258652959,-3897.9,0.00025753,2]
[336945932,1725258652970,-1052.29,0.00025753,2]
[336945933,1725258652981,-859.7,0.00025753,2]
[336945934,1725258652991,-1412.46,0.00025753,2]
[336945935,1725258653002,-500.0,0.00025753,2]
[336945936,1725258653011,-1256.22,0.00025753,2]
[336945937,1725258653022,-847.48,0.00025753,2]
[336945938,1725258653032,-1079.06,0.00025753,2]
[336945939,1725258653042,-1255.85,0.00025753,2]
[336945940,1725258653051,-755.07,0.00025753,2]
[336945941,1725258653060,-526.57,0.00025753,2]
[336945942,1725258653071,-990.3,0.00025753,2]
[336945943,1725258653080,-1701.04,0.00025753,2]
[336945944,1725258653089,-500.0,0.00025753,2]
[336945945,1725258653099,-500.0,0.00025753,2]
[336945946,1725258653107,-500.0,0.00025753,2]
[336945947,1725258653117,-650.19,0.00025753,2]
[336945948,1725258653126,-500.0,0.00025753,2]
[336945949,1725258653135,-531.52,0.00025753,2]
[336945950,1725258653145,-586.59,0.00025753,2]
[336945951,1725258653154,-500.0,0.00025753,2]
[336945952,1725258653163,-500.0,0.00025753,2]
[336945953,1725258653172,-708.4,0.00025753,2]
[336945954,1725258653182,-6482.63,0.00025753,2]
[336945955,1725258653192,-1126.44,0.00025753,2]
[336945956,1725258653202,-504.28990011,0.00025753,2]
[336945957,1725258653214,-500.0,0.00025753,2]
[336945958,1725258653223,-1244.01,0.00025753,2]
[336945959,1725258653232,-1255.46,0.00025753,2]
[336945960,1725258653241,-7008.83,0.00025753,2]
[336945961,1725258653250,-500.0,0.00025753,2]
[336945962,1725258653260,-500.0,0.00025753,2]
[336945963,1725258653269,-1390.74,0.00025753,2]
[336945964,1725258653279,-1519.35,0.00025753,2]
[336945965,1725258653288,-500.0,0.00025753,2]
[336945966,1725258653298,-622.25,0.00025753,2]
[336945967,1725258653308,-712.31,0.00025753,2]
[336945968,1725258653317,-2406.10296178,0.00025753,2]
[336945969,1725258653341,-40.73703822,0.00025753,2]
[336945970,1725258653353,-267.71934547,0.00025753,2]
[336945971,1725258653523,-500.0,0.00024657,2]
[336945972,1725258653533,-500.0,0.00024657,2]
[336945973,1725258653543,-500.0,0.00024931,2]
[336945974,1725258653552,-500.0,0.00024931,2]
[336945975,1725258653561,-544.9,0.00025205,2]
[336945976,1725258653579,-500.0,0.00025205,2]
[336945977,1725258653589,-544.9,0.00025479,2]
[336945978,1725258653599,-1156.88065453,0.00025753,2]
[336945979,1725258653609,-500.0,0.00025753,2]
[336945980,1725258653620,-1006.69,0.00025753,2]
[336945981,1725258653630,-500.0,0.00025753,2]
[336945982,1725258653640,-500.0,0.00025753,2]
[336945983,1725258653651,-500.0,0.00025753,2]
[336945984,1725258653662,-1085.39,0.00025753,2]
[336945985,1725258653672,-500.0,0.00025753,2]
[336945986,1725258653681,-2933.59,0.00025753,2]
[336945987,1725258653691,-500.0,0.00025753,2]
[336945988,1725258653700,-1058.21,0.00025753,2]
[336945989,1725258653710,-966.6,0.00025753,2]
[336945990,1725258653719,-1609.12,0.00025753,2]
[336945991,1725258653728,-500.0,0.00025753,2]
[336945992,1725258653737,-1631.02,0.00025753,2]
[336945993,1725258653747,-1212.67,0.00025753,2]
[336945994,1725258653757,-544.9,0.00025753,2]
[336945995,1725258653766,-153.0,0.00025754,2]
[336945996,1725258653775,-153.0,0.00025754,2]
[336945997,1725258653785,-153.0,0.00025754,2]
[336945998,1725258653794,-5095.64830452,0.00025777,5]
[336945999,1725258653803,-2577.33,0.000258,14]
[336946000,1725258653813,-150.112233,0.000258,8]
[336946001,1725258653826,-151.0,0.00025826,3]
[336946002,1725258653837,-159.0,0.0002589,2]
[336946003,1725258653848,-243.78534548,0.0002589,120]
[336946004,1725258653859,-150.112233,0.000259,7]
[336946005,1725258653870,-150.112233,0.000259,5]
[336946006,1725258653879,-757.140405,0.000259,2]
[336946007,1725258653888,-795.977006,0.000259,2]
[336946008,1725258653897,-195.111376,0.000259,2]
[336946009,1725258653906,-280.244579,0.000259,2]
[336946010,1725258653916,-420.366868,0.000259,2]
[336946011,1725258653929,-179.144564,0.000259,2]
[336946012,1725258653938,-198.323445,0.000259,2]
[336946013,1725258653948,-345.214234,0.000259,2]
[336946014,1725258653957,-366.401559,0.000259,2]
[336946015,1725258653966,-300.924316,0.000259,2]
[336946016,1725258653975,-168.892399,0.000259,2]
[336946017,1725258653986,-1081.42948976,0.0002592,2]
[336946018,1725258653995,-255.426678,0.00025929,2]
[336946019,1725258654005,-276.166198,0.00025929,2]
[336946020,1725258654014,-731.770719,0.00025929,2]
[336946021,1725258654024,-500.0,0.00025931,9]
[336946022,1725258654034,-160.0,0.0002595,5]
[336946023,1725258654043,-188.45326712,0.0002595,5]
[336946024,1725258654053,-3200.0,0.00025966,2]
[336946025,1725258654063,-300.0,0.00025966,2]
[336946026,1725258654081,-150.414,0.00025966,2]
[336946027,1725258654090,-151.0,0.00025994,3]
[336946028,1725258654100,-565.2,0.00026017,3]
[336946029,1725258654109,-500.0,0.00026027,2]
[336946030,1725258654119,-500.0,0.00026027,2]
[336946031,1725258654128,-500.0,0.00026027,2]
[336946032,1725258654137,-500.0,0.00026027,2]
[336946033,1725258654147,-500.0,0.00026027,2]
[336946034,1725258654157,-512.55,0.00026027,2]
[336946035,1725258654166,-520.0,0.00026027,2]
[336946036,1725258654176,-500.0,0.00026027,2]
[336946037,1725258654186,-500.0,0.00026027,2]
[336946038,1725258654195,-764.81,0.00026027,2]
[336946039,1725258654204,-500.0,0.00026027,2]
[336946040,1725258654214,-236.95349267,0.00026027,2]
[336946041,1725258654224,-500.0,0.00026027,2]
[336946042,1725258654233,-501.7,0.00026027,2]
[336946043,1725258654243,-500.0,0.00026027,2]
[336946044,1725258654251,-500.0,0.00026027,2]
[336946045,1725258654261,-556.6,0.00026027,2]
[336946046,1725258654270,-572.03,0.00026027,2]
[336946047,1725258654279,-502.71,0.00026027,2]
[336946048,1725258654288,-500.0,0.00026027,2]
[336946049,1725258654297,-350.6629984,0.00026027,2]
[336946050,1725258654307,-500.0,0.00026027,2]
[336946051,1725258654317,-2693.42,0.00026027,2]
[336946052,1725258654326,-500.0,0.00026027,2]
[336946053,1725258654335,-500.0,0.00026027,2]
[336946054,1725258654345,-500.0,0.00026027,2]
[336946055,1725258654354,-500.0,0.00026027,2]
[336946056,1725258654363,-500.0,0.00026027,2]
[336946057,1725258654373,-500.0,0.00026027,2]
[336946058,1725258654382,-500.0,0.00026027,2]
[336946059,1725258654391,-606.26,0.00026027,2]
[336946060,1725258654400,-500.0,0.00026027,2]
[336946061,1725258654410,-500.0,0.00026027,2]
[336946062,1725258654419,-508.1,0.00026027,2]
[336946063,1725258654429,-500.0,0.00026027,2]
[336946064,1725258654439,-678.91,0.00026027,2]
[336946065,1725258654449,-588.43,0.00026027,2]
[336946066,1725258654458,-151.0,0.00026027,7]
[336946067,1725258654467,-701.58,0.00026027,2]
[336946068,1725258654477,-704.38,0.00026027,2]
[336946069,1725258654487,-604.82,0.00026027,2]
[336946070,1725258654496,-543.95,0.00026027,2]
[336946071,1725258654505,-500.0,0.00026027,2]
[336946072,1725258654514,-500.0,0.00026027,2]
[336946073,1725258654523,-500.0,0.00026027,2]
[336946074,1725258654533,-1217.58,0.00026027,2]
[336946075,1725258654543,-500.0,0.00026027,2]
[336946076,1725258654552,-522.46,0.00026027,2]
[336946077,1725258654561,-826.86,0.00026027,2]
[336946078,1725258654572,-728.19,0.00026027,2]
[336946079,1725258654581,-151.0,0.00026027,7]
[336946080,1725258654591,-500.0,0.00026027,2]
[336946081,1725258654601,-151.0,0.00026027,7]
[336946082,1725258654611,-999.17,0.00026027,2]
[336946083,1725258654621,-1665.34,0.00026027,2]
[336946084,1725258654631,-500.0,0.00026027,2]
[336946085,1725258654640,-500.0,0.00026027,2]
[336946086,1725258654649,-500.0,0.00026027,2]
[336946087,1725258654782,-500.0,0.00026027,2]
[336946088,1725258654796,-962.83,0.00026027,2]
[336946089,1725258654805,-954.9,0.00026027,2]
[336946090,1725258654814,-500.0,0.00026027,2]
[336946091,1725258654824,-632.46,0.00026027,2]
[336946092,1725258654834,-500.0,0.00026027,2]
[336946093,1725258654844,-672.66,0.00026027,2]
[336946094,1725258654854,-500.0,0.00026027,2]
[336946095,1725258654863,-929.62,0.00026027,2]
[336946096,1725258654873,-2020.1,0.00026027,2]
[336946097,1725258654883,-500.0,0.00026027,2]
[336946098,1725258654893,-500.0,0.00026027,2]
[336946099,1725258654903,-500.0,0.00026027,2]
[336946100,1725258654913,-500.0,0.00026027,2]
[336946101,1725258654927,-500.0,0.00026027,2]
[336946102,1725258654936,-573.14,0.00026027,2]
[336946103,1725258654946,-665.01,0.00026027,2]
[336946104,1725258654956,-500.0,0.00026027,2]
[336946105,1725258654966,-1487.23,0.00026027,2]
[336946106,1725258654976,-500.0,0.00026027,2]
[336946107,1725258654985,-630.5,0.00026027,2]
[336946108,1725258654996,-1094.2,0.00026027,2]
[336946109,1725258655005,-8619.74,0.00026027,2]
[336946110,1725258655015,-984.18,0.00026027,2]
[336946111,1725258655025,-500.0,0.00026027,2]
[336946112,1725258655035,-1200.96,0.00026027,2]
[336946113,1725258655045,-1157.38,0.00026027,2]
[336946114,1725258655054,-1212.92,0.00026027,2]
[336946115,1725258655063,-500.0,0.00026027,2]
[336946116,1725258655073,-879.85,0.00026027,2]
[336946117,1725258655082,-1820.98,0.00026027,2]
[336946118,1725258655091,-601.14,0.00026027,2]
[336946119,1725258655101,-500.0,0.00026027,2]
[336946120,1725258655110,-500.0,0.00026027,2]
[336946121,1725258655120,-2061.91,0.00026027,2]
[336946122,1725258655130,-945.73,0.00026027,2]
[336946123,1725258655139,-500.0,0.00026027,2]
[336946124,1725258655149,-1363.01,0.00026027,2]
[336946125,1725258655161,-1010.37,0.00026027,2]
[336946126,1725258655171,-3897.9,0.00026027,2]
[336946127,1725258655180,-1052.29,0.00026027,2]
[336946128,1725258655190,-859.7,0.00026027,2]
[336946129,1725258655199,-1412.46,0.00026027,2]
[336946130,1725258655208,-608.5228033,0.00026027,2]
[336946131,1725258655218,-1256.22,0.00026027,2]
[336946132,1725258655230,-847.48,0.00026027,2]
[336946133,1725258655241,-1079.06,0.00026027,2]
[336946134,1725258655251,-1255.85,0.00026027,2]
[336946135,1725258655263,-755.07,0.00026027,2]
[336946136,1725258655273,-526.57,0.00026027,2]
[336946137,1725258655283,-990.3,0.00026027,2]
[336946138,1725258655292,-1701.04,0.00026027,2]
[336946139,1725258655301,-500.0,0.00026027,2]
[336946140,1725258655310,-500.0,0.00026027,2]
[336946141,1725258655320,-650.19,0.00026027,2]
[336946142,1725258655329,-500.0,0.00026027,2]
[336946143,1725258655338,-531.52,0.00026027,2]
[336946144,1725258655347,-586.59,0.00026027,2]
[336946145,1725258655357,-500.0,0.00026027,2]
[336946146,1725258655366,-500.0,0.00026027,2]
[336946147,1725258655375,-708.4,0.00026027,2]
[336946148,1725258655384,-6482.63,0.00026027,2]
[336946149,1725258655393,-1126.44,0.00026027,2]
[336946150,1725258655402,-500.0,0.00026027,2]
[336946151,1725258655411,-1244.01,0.00026027,2]
[336946152,1725258655420,-1255.46,0.00026027,2]
[336946153,1725258655430,-7008.83,0.00026027,2]
[336946154,1725258655439,-500.0,0.00026027,2]
[336946155,1725258655449,-1390.74,0.00026027,2]
[336946156,1725258655461,-1519.35,0.00026027,2]
[336946157,1725258655470,-622.25,0.00026027,2]
[336946158,1725258655479,-712.31,0.00026027,2]
[336946159,1725258655489,-2446.84,0.00026027,2]
[336946160,1725258655499,-1424.6,0.00026027,2]
[336946161,1725258655508,-500.0,0.00026027,2]
[336946162,1725258655518,-1006.69,0.00026027,2]
[336946163,1725258655527,-500.0,0.00026027,2]
[336946164,1725258655536,-1085.39,0.00026027,2]
[336946165,1725258655546,-587.88976229,0.00026027,2]
[336946166,1725258655556,-2933.59,0.00026027,2]
[336946167,1725258655565,-1058.21,0.00026027,2]
[336946168,1725258655574,-966.6,0.00026027,2]
[336946169,1725258655583,-1609.12,0.00026027,2]
[336946170,1725258655593,-500.0,0.00026027,2]
[336946171,1725258655602,-1631.02,0.00026027,2]
[336946172,1725258655611,-1212.67,0.00026027,2]
[336946173,1725258655620,-544.9,0.00026027,2]
[336946174,1725258655630,-1500.0,0.00026119,2]
[336946175,1725258655639,-159.641673,0.0002614,2]
[336946176,1725258655648,-172.603874,0.0002614,2]
[336946177,1725258655657,-151.0,0.00026161,3]
[336946178,1725258655666,-500.0,0.00026164,2]
[336946179,1725258655677,-500.0,0.00026164,2]
[336946180,1725258655687,-151.0,0.00026212,7]
[336946181,1725258655696,-231.109759,0.00026212,7]
[336946182,1725258655706,-757.140405,0.00026212,2]
[336946183,1725258655715,-218.416474,0.00026212,2]
[336946184,1725258655726,-190.360737,0.00026212,2]
[336946185,1725258655735,-214.722643,0.00026212,2]
[336946186,1725258655745,-795.977006,0.00026212,2]
[336946187,1725258655754,-195.111376,0.00026212,2]
[336946188,1725258655764,-192.374311,0.00026212,2]
[336946189,1725258655773,-195.640221,0.00026212,2]
[336946190,1725258655783,-280.244579,0.00026212,2]
[336946191,1725258655793,-420.366868,0.00026212,2]
[336946192,1725258655803,-179.144564,0.00026212,2]
[336946193,1725258655814,-198.323445,0.00026212,2]
[336946194,1725258655824,-345.214234,0.00026212,2]
[336946195,1725258655837,-366.401559,0.00026212,2]
[336946196,1725258655847,-300.924316,0.00026212,2]
[336946197,1725258655858,-181.848708,0.00026212,2]
[336946198,1725258655868,-197.557399,0.00026212,2]
[336946199,1725258655878,-168.892399,0.00026212,2]
[336946200,1725258655887,-151.0,0.00026245,7]
[336946201,1725258655896,-277.191273,0.00026245,2]
[336946202,1725258655906,-256.841411,0.00026245,2]
[336946203,1725258655915,-255.426678,0.00026245,2]
[336946204,1725258655928,-276.166198,0.00026245,2]
[336946205,1725258655937,-731.770719,0.00026245,2]
[336946206,1725258655948,-1011.0,0.000263,2]
[336946207,1725258655960,-500.0,0.00026301,2]
[336946208,1725258655970,-500.0,0.00026301,2]
[336946209,1725258655980,-500.0,0.00026301,2]
[336946210,1725258655990,-500.0,0.00026301,2]
[336946211,1725258656002,-500.0,0.00026301,2]
[336946212,1725258656012,-512.55,0.00026301,2]
[336946213,1725258656022,-520.0,0.00026301,2]
[336946214,1725258656033,-500.0,0.00026301,2]
[336946215,1725258656044,-500.0,0.00026301,2]
[336946216,1725258656055,-764.81,0.00026301,2]
[336946217,1725258656065,-500.0,0.00026301,2]
[336946218,1725258656075,-500.0,0.00026301,2]
[336946219,1725258656084,-501.7,0.00026301,2]
[336946220,1725258656094,-500.0,0.00026301,2]
[336946221,1725258656103,-500.0,0.00026301,2]
[336946222,1725258656112,-556.6,0.00026301,2]
[336946223,1725258656122,-572.03,0.00026301,2]
[336946224,1725258656131,-502.71,0.00026301,2]
[336946225,1725258656141,-500.0,0.00026301,2]
[336946226,1725258656151,-306.7689583,0.00026301,2]
[336946227,1725258656160,-2693.42,0.00026301,2]
[336946228,1725258656169,-500.0,0.00026301,2]
[336946229,1725258656179,-500.0,0.00026301,2]
[336946230,1725258656188,-500.0,0.00026301,2]
[336946231,1725258656198,-500.0,0.00026301,2]
[336946232,1725258656208,-500.0,0.00026301,2]
[336946233,1725258656217,-500.0,0.00026301,2]
[336946234,1725258656227,-500.0,0.00026301,2]
[336946235,1725258656236,-606.26,0.00026301,2]
[336946236,1725258656247,-500.0,0.00026301,2]
[336946237,1725258656257,-500.0,0.00026301,2]
[336946238,1725258656268,-508.1,0.00026301,2]
[336946239,1725258656277,-500.0,0.00026301,2]
[336946240,1725258656286,-678.91,0.00026301,2]
[336946241,1725258656296,-588.43,0.00026301,2]
[336946242,1725258656305,-701.58,0.00026301,2]
[336946243,1725258656314,-213.248254,0.00026301,7]
[336946244,1725258656323,-704.38,0.00026301,2]
[336946245,1725258656332,-604.82,0.00026301,2]
[336946246,1725258656342,-543.95,0.00026301,2]
[336946247,1725258656351,-500.0,0.00026301,2]
[336946248,1725258656360,-500.0,0.00026301,2]
[336946249,1725258656371,-326.97637173,0.00026301,2]
[336946250,1725258656379,-1217.58,0.00026301,2]
[336946251,1725258656389,-500.0,0.00026301,2]
[336946252,1725258656399,-522.46,0.00026301,2]
[336946253,1725258656409,-826.86,0.00026301,2]
[336946254,1725258656418,-728.19,0.00026301,2]
[336946255,1725258656427,-151.0,0.00026301,7]
[336946256,1725258656437,-500.0,0.00026301,2]
[336946257,1725258656447,-999.17,0.00026301,2]
[336946258,1725258656456,-1665.34,0.00026301,2]
[336946259,1725258656465,-500.0,0.00026301,2]
[336946260,1725258656474,-388.78297183,0.00026301,2]
[336946261,1725258656483,-500.0,0.00026301,2]
[336946262,1725258656493,-962.83,0.00026301,2]
[336946263,1725258656502,-954.9,0.00026301,2]
[336946264,1725258656511,-500.0,0.00026301,2]
[336946265,1725258656520,-632.46,0.00026301,2]
[336946266,1725258656529,-500.0,0.00026301,2]
[336946267,1725258656539,-672.66,0.00026301,2]
[336946268,1725258656549,-500.0,0.00026301,2]
[336946269,1725258656558,-929.62,0.00026301,2]
[336946270,1725258656568,-2020.1,0.00026301,2]
[336946271,1725258656578,-500.0,0.00026301,2]
[336946272,1725258656588,-500.0,0.00026301,2]
[336946273,1725258656597,-500.0,0.00026301,2]
[336946274,1725258656606,-500.0,0.00026301,2]
[336946275,1725258656615,-500.0,0.00026301,2]
[336946276,1725258656625,-665.01,0.00026301,2]
[336946277,1725258656634,-573.14,0.00026301,2]
[336946278,1725258656643,-500.0,0.00026301,2]
[336946279,1725258656652,-1487.23,0.00026301,2]
[336946280,1725258656661,-500.0,0.00026301,2]
[336946281,1725258656670,-630.5,0.00026301,2]
[336946282,1725258656679,-1094.2,0.00026301,2]
[336946283,1725258656689,-8619.74,0.00026301,2]
[336946284,1725258656697,-984.18,0.00026301,2]
[336946285,1725258656707,-500.0,0.00026301,2]
[336946286,1725258656716,-1200.96,0.00026301,2]
[336946287,1725258656726,-1157.38,0.00026301,2]
[336946288,1725258656735,-1212.92,0.00026301,2]
[336946289,1725258656744,-500.0,0.00026301,2]
[336946290,1725258656753,-879.85,0.00026301,2]
[336946291,1725258656764,-1820.98,0.00026301,2]
[336946292,1725258656774,-601.14,0.00026301,2]
[336946293,1725258656783,-500.0,0.00026301,2]
[336946294,1725258656792,-500.0,0.00026301,2]
[336946295,1725258656802,-2061.91,0.00026301,2]
[336946296,1725258656811,-945.73,0.00026301,2]
[336946297,1725258656822,-500.0,0.00026301,2]
[336946298,1725258656832,-1363.01,0.00026301,2]
[336946299,1725258656843,-1010.37,0.00026301,2]
[336946300,1725258656855,-3897.9,0.00026301,2]
[336946301,1725258656865,-1052.29,0.00026301,2]
[336946302,1725258656874,-859.7,0.00026301,2]
[336946303,1725258656883,-1412.46,0.00026301,2]
[336946304,1725258656894,-1256.22,0.00026301,2]
[336946305,1725258656904,-847.48,0.00026301,2]
[336946306,1725258656913,-1079.06,0.00026301,2]
[336946307,1725258656928,-1255.85,0.00026301,2]
[336946308,1725258656937,-755.07,0.00026301,2]
[336946309,1725258656947,-526.57,0.00026301,2]
[336946310,1725258656956,-990.3,0.00026301,2]
[336946311,1725258656967,-1701.04,0.00026301,2]
[336946312,1725258656976,-500.0,0.00026301,2]
[336946313,1725258656985,-500.0,0.00026301,2]
[336946314,1725258656995,-650.19,0.00026301,2]
[336946315,1725258657006,-500.0,0.00026301,2]
[336946316,1725258657016,-531.52,0.00026301,2]
[336946317,1725258657027,-586.59,0.00026301,2]
[336946318,1725258657036,-500.0,0.00026301,2]
[336946319,1725258657045,-500.0,0.00026301,2]
[336946320,1725258657055,-708.4,0.00026301,2]
[336946321,1725258657064,-6482.63,0.00026301,2]
[336946322,1725258657075,-1126.44,0.00026301,2]
[336946323,1725258657094,-500.0,0.00026301,2]
[336946324,1725258657103,-1244.01,0.00026301,2]
[336946325,1725258657113,-1255.46,0.00026301,2]
[336946326,1725258657123,-7008.83,0.00026301,2]
[336946327,1725258657132,-500.0,0.00026301,2]
[336946328,1725258657141,-1390.74,0.00026301,2]
[336946329,1725258657150,-1519.35,0.00026301,2]
[336946330,1725258657159,-622.25,0.00026301,2]
[336946331,1725258657169,-712.31,0.00026301,2]
[336946332,1725258657179,-2446.84,0.00026301,2]
[336946333,1725258657188,-1424.6,0.00026301,2]
[336946334,1725258657229,-500.0,0.00026301,2]
[336946335,1725258657238,-1006.69,0.00026301,2]
[336946336,1725258657247,-500.0,0.00026301,2]
[336946337,1725258657257,-1085.39,0.00026301,2]
[336946338,1725258657266,-2933.59,0.00026301,2]
[336946339,1725258657276,-1058.21,0.00026301,2]
[336946340,1725258657286,-966.6,0.00026301,2]
[336946341,1725258657298,-1609.12,0.00026301,2]
[336946342,1725258657307,-500.0,0.00026301,2]
[336946343,1725258657317,-1631.02,0.00026301,2]
[336946344,1725258657334,-1212.67,0.00026301,2]
[336946345,1725258657343,-544.9,0.00026301,2]
[336946346,1725258657352,-1003.3,0.00026301,120]
[336946347,1725258657362,-151.0,0.00026329,3]
[336946348,1725258657371,-1000.0,0.000264,2]
[336946349,1725258657381,-376.8,0.000264,120]
[336946350,1725258657391,-150.112234,0.000264,8]
[336946351,1725258657399,-1500.0,0.00026419,2]
[336946352,1725258657409,-1500.0,0.00026419,2]
[336946353,1725258657418,-500.0,0.00026438,2]
[336946354,1725258657427,-500.0,0.00026438,2]
[336946355,1725258657436,-163.63,0.00026475,7]
[336946356,1725258657445,-209.6900866,0.00026488,2]
[336946357,1725258657455,-153.0,0.00026488,2]
[336946358,1725258657464,-7458.94652043,0.0002649,2]
[336946359,1725258657473,-151.0,0.00026497,3]
[336946360,1725258657482,-2500.0,0.0002654,2]